bitfinex/quotes_SOLUSD_20240606
["timestamp","ask_amount","ask_price","bid_price","bid_amount"]
[1717651905398,2.1415,172.78,172.73,2.1419]
[1717651905579,7.9515,172.78,172.73,2.1419]
[1717651906092,7.9516,172.77,172.72,2.1421]
[1717651906280,7.9517,172.76,172.72,2.1421]
[1717651907091,2.1418,172.75,172.71,2.1422]
[1717651907398,7.9517,172.76,172.71,2.1422]
[1717651907575,7.9517,172.76,172.72,2.1421]
[1717651908187,5.81,172.76,172.72,2.1421]
[1717651908673,7.9517,172.76,172.72,2.1421]
[1717651909073,7.9518,172.75,172.71,2.1422]
[1717651909295,2.1419,172.74,172.7,2.1423]
[1717651909480,5.81,172.74,172.7,2.1423]
[1717651909894,7.9519,172.74,172.7,2.1423]
[1717651910278,5.81,172.74,172.71,2.1423]
[1717651911301,7.9518,172.75,172.71,2.1423]
[1717651912016,5.81,172.74,172.7,2.1423]
[1717651912509,5.81,172.74,172.71,2.1423]
[1717651912880,5.81,172.74,172.7,2.1423]
[1717651913710,5.81,172.74,172.71,2.1423]
[1717651915896,7.9519,172.74,172.7,2.1423]
[1717651916608,5.81,172.74,172.71,2.1422]
[1717651918692,2.1418,172.75,172.71,2.1422]
[1717651919108,7.9518,172.75,172.71,2.1422]
[1717651919919,7.9518,172.75,172.7,2.1423]
[1717651920121,2.1418,172.75,172.71,2.1423]
[1717651920311,7.9518,172.75,172.71,2.1423]
[1717651921116,5.81,172.75,172.72,2.1421]
[1717651921795,5.81,172.75,172.71,2.1422]
[1717651922105,7.9518,172.75,172.71,2.1422]
[1717651922303,2.1418,172.75,172.71,2.1422]
[1717651922506,5.81,172.75,172.72,2.1421]
[1717651922715,7.9517,172.76,172.72,2.1421]
[1717651923327,10.7743,172.8,172.74,2.1418]
[1717651923613,7.9515,172.77,172.72,2.1421]
[1717651923817,2.1417,172.76,172.72,2.1421]
[1717651924522,2.1418,172.75,172.71,2.1422]
[1717651924709,2.1417,172.76,172.72,6.0888]
[1717651925028,7.9517,172.76,172.72,8.2309]
[1717651925215,7.9517,172.76,172.72,2.1421]
[1717651925415,2.1418,172.75,172.71,2.1422]
[1717651925627,7.9517,172.76,172.71,2.1422]
[1717651925915,7.9517,172.76,172.72,2.1421]
[1717651926612,2.1418,172.75,172.71,2.1422]
[1717651927605,2.1418,172.75,172.7,2.1423]
[1717651928133,7.9519,172.74,172.7,2.1423]
[1717651928609,5.81,172.73,172.7,2.1423]
[1717651930113,7.952,172.73,172.69,2.1425]
[1717651930318,5.81,172.73,172.69,2.1425]
[1717651930623,5.81,172.72,172.67,8.69253394]
[1717651930799,5.81,172.71,172.68,2.1426]
[1717651932017,5.81,172.71,172.67,10.83523394]
[1717651932527,7.9523,172.71,172.67,2.1427]
[1717651932722,7.9523,172.71,172.66,8.69253394]
[1717651932929,2.1428,172.67,172.66,8.69253394]
[1717651933223,5.81,172.69,172.66,8.69253394]
[1717651934242,5.81,172.69,172.66,10.83543394]
[1717651934935,7.9525,172.69,172.66,8.69253394]
[1717651935311,5.81,172.68,172.66,8.69253394]
[1717651937929,5.81,172.68,172.66,10.83543394]
[1717651938833,5.81,172.68,172.66,8.69253394]
[1717651941755,5.81,172.68,172.65,10.83553394]
[1717651941934,2.143,172.65,172.63,8.69253394]
[1717651942319,5.81,172.64,172.62,8.69253394]
[1717651942512,5.81,172.63,172.61,10.83593394]
[1717651942912,5.81,172.63,172.61,8.69253394]
[1717651943114,5.81,172.62,172.6,8.69253394]
[1717651943314,5.81,172.63,172.6,8.69253394]
[1717651943515,5.81,172.63,172.61,2.1435]
[1717651943816,5.81,172.64,172.61,2.1435]
[1717651944014,5.81,172.64,172.6,10.83613394]
[1717651944430,7.9532,172.64,172.6,10.83613394]
[1717651945441,7.9532,172.64,172.59,10.83623394]
[1717651947432,7.9532,172.64,172.6,2.1436]
[1717651947816,7.9532,172.64,172.59,8.4548]
[1717651948327,7.9533,172.63,172.59,6.3111]
[1717651948631,7.9533,172.63,172.59,8.4548]
[1717651950032,7.9533,172.63,172.59,2.1437]
[1717651952652,2.1433,172.63,172.59,2.1437]
[1717651952943,5.81,172.63,172.6,2.1436]
[1717651953425,7.9532,172.64,172.6,2.1436]
[1717651953750,2.1432,172.64,172.59,2.1437]
[1717651954046,2.1432,172.64,172.6,2.1436]
[1717651954221,5.81,172.64,172.6,2.1436]
[1717651955332,2.1431,172.65,172.6,2.1436]
[1717651955528,7.9529,172.66,172.59,16.5288]
[1717651955727,7.9529,172.66,172.62,2.1433]
[1717651955931,5.81,172.66,172.62,2.1433]
[1717651956136,5.81,172.66,172.63,2.1433]
[1717651956939,2.1428,172.67,172.63,2.1433]
[1717651957243,7.9528,172.67,172.63,2.1433]
[1717651957730,7.953,172.65,172.61,2.1435]
[1717651957931,5.81,172.64,172.61,2.1435]
[1717651959246,5.81,172.64,172.58,8.69382453]
[1717651959454,7.9533,172.63,172.59,2.1437]
[1717651959628,5.81,172.62,172.59,2.1437]
[1717651960535,5.81,172.61,172.59,2.1437]
[1717651960737,5.81,172.61,172.56,8.69409842]
[1717651960945,5.81,172.61,172.58,2.1439]
[1717651962942,5.81,172.61,172.59,2.1437]
[1717651964758,4.2861,172.65,172.59,2.1437]
[1717651964759,2.1433,172.63,172.59,2.1437]
[1717651964940,7.9533,172.63,172.59,2.1437]
[1717651965552,2.1433,172.63,172.59,2.1437]
[1717651965757,7.9533,172.63,172.59,2.1437]
[1717651966058,2.1433,172.63,172.59,2.1437]
[1717651966233,2.1432,172.64,172.6,2.1436]
[1717651966435,7.9532,172.64,172.6,2.1436]
[1717651967556,5.81,172.63,172.6,2.1436]
[1717651969264,7.9532,172.64,172.6,2.1436]
[1717651970358,2.1432,172.64,172.6,2.1436]
[1717651970662,7.9532,172.64,172.6,2.1436]
[1717651971438,6.2613,172.63,172.6,2.1436]
[1717651971643,14.2146,172.63,172.59,2.1437]
[1717651971855,7.9535,172.61,172.57,2.1439]
[1717651972065,5.81,172.61,172.57,2.1439]
[1717651972762,5.81,172.61,172.58,2.1438]
[1717651973066,7.9536,172.61,172.56,10.83885302]
[1717651973383,7.9536,172.61,172.57,2.1439]
[1717651973669,5.81,172.61,172.57,2.1439]
[1717651973864,5.81,172.61,172.58,2.1439]
[1717651979959,7.9535,172.62,172.58,2.1439]
[1717651980173,2.1435,172.62,172.58,2.1439]
[1717651980357,7.9534,172.62,172.58,2.1438]
[1717651980676,5.81,172.62,172.59,1.81747432]
[1717651981180,7.9534,172.62,172.58,2.1438]
[1717651984368,7.9534,172.62,172.58,10.83867061]
[1717651984570,7.9534,172.62,172.59,2.1438]
[1717651984774,2.1434,172.62,172.59,2.1438]
[1717651985078,7.9534,172.62,172.58,10.83867061]
[1717651985461,7.9534,172.62,172.59,2.1438]
[1717651985676,7.9534,172.62,172.58,10.83867061]
[1717651986287,7.9534,172.62,172.59,8.69487061]
[1717651987581,7.9534,172.62,172.6,8.69487061]
[1717651988992,2.1434,172.62,172.6,8.69487061]
[1717651991275,7.9534,172.62,172.6,8.69487061]
[1717651992685,2.1434,172.62,172.6,8.69487061]
[1717651992989,7.9534,172.62,172.6,8.69487061]
[1717651994790,5.81,172.62,172.6,8.69487061]
[1717651995308,7.9534,172.62,172.6,8.69487061]
[1717651996473,6.2484,172.64,172.6,8.69487061]
[1717651996690,7.9535,172.62,172.6,8.69487061]
[1717651998494,2.1435,172.62,172.6,8.69487061]
[1717651998696,7.9535,172.62,172.6,8.69487061]
[1717651999298,7.9535,172.62,172.58,2.1438]
[1717651999593,2.1431,172.65,172.61,2.1435]
[1717651999893,2.143,172.66,172.62,2.1434]
[1717652000098,7.9529,172.66,172.62,10.83804161]
[1717652000302,7.9529,172.66,172.62,2.1433]
[1717652000592,7.9529,172.66,172.62,10.83804161]
[1717652004613,7.9529,172.66,172.62,10.83743985]
[1717652006804,7.9529,172.66,172.63,2.1432]
[1717652007316,6.4303,172.69,172.64,2.1431]
[1717652007516,20.0,172.68,172.63,2.1432]
[1717652007816,2.1429,172.66,172.63,2.1432]
[1717652008002,7.9528,172.67,172.63,2.1432]
[1717652008204,2.1429,172.66,172.63,2.1432]
[1717652008714,7.9528,172.67,172.63,2.1432]
[1717652008912,2.1428,172.67,172.63,10.83733985]
[1717652009214,7.9528,172.67,172.63,10.83733985]
[1717652009410,2.1428,172.67,172.63,10.83733985]
[1717652009609,7.9528,172.67,172.63,10.83733985]
[1717652009917,2.1428,172.67,172.63,10.83733985]
[1717652010115,7.9528,172.67,172.63,10.83733985]
[1717652010300,7.9528,172.67,172.63,2.1432]
[1717652010301,2.1428,172.67,172.63,2.1432]
[1717652010611,2.1427,172.68,172.64,2.1431]
[1717652010806,17.39422201,172.73,172.66,2.1428]
[1717652011006,7.9526,172.69,172.65,2.143]
[1717652011302,5.81,172.67,172.65,2.143]
[1717652011692,5.81,172.67,172.64,10.83723985]
[1717652011896,33.9516,172.71,172.64,10.83723985]
[1717652012105,2.1426,172.68,172.64,10.83723985]
[1717652012504,2.1426,172.69,172.64,10.83723985]
[1717652013423,2.1426,172.69,172.64,2.1431]
[1717652013725,5.81,172.67,172.64,2.1431]
[1717652014323,2.1427,172.68,172.64,2.1431]
[1717652014627,5.81,172.69,172.66,2.1428]
[1717652015816,2.1425,172.7,172.66,2.1428]
[1717652016024,5.81,172.69,172.66,2.1428]
[1717652016631,2.1423,172.71,172.67,2.1427]
[1717652016879,5.81,172.7,172.68,2.1426]
[1717652017514,2.1422,172.72,172.68,2.1426]
[1717652017924,5.81,172.7,172.68,2.1426]
[1717652018936,2.1422,172.72,172.68,2.1426]
[1717652019143,5.81,172.7,172.68,2.1426]
[1717652023030,5.81,172.7,172.69,2.1425]
[1717652023440,5.81,172.71,172.69,2.1425]
[1717652024113,2.1422,172.72,172.69,2.1425]
[1717652024310,5.81,172.71,172.69,2.1425]
[1717652025538,5.81,172.7,172.69,2.1425]
[1717652028138,5.81,172.8,172.79,2.1412]
[1717652028340,5.81,172.8,172.7,21.606]
[1717652028341,5.81,172.8,172.73,8.5681]
[1717652028538,5.81,172.77,172.74,4.2838]
[1717652028735,10.7031,172.85,172.76,4.2833]
[1717652028943,5.81,172.78,172.77,2.1415]
[1717652029547,5.81,172.78,172.76,2.1416]
[1717652030518,5.81,172.77,172.76,2.1416]
[1717652032048,12.844,172.85,172.78,2.1414]
[1717652032235,5.81,172.79,172.77,2.1415]
[1717652032437,5.81,172.78,172.74,6.4257]
[1717652032627,7.9512,172.8,172.76,2.1416]
[1717652032828,5.81,172.77,172.76,2.1416]
[1717652035449,5.81,172.77,172.75,2.1417]
[1717652035664,5.81,172.77,172.76,2.1416]
[1717652035829,5.81,172.77,172.75,2.1417]
[1717652036029,5.81,172.76,172.75,2.1417]
[1717652040346,2.1413,172.79,172.76,2.1416]
[1717652040538,5.81,172.77,172.76,2.1416]
[1717652040733,2.1413,172.79,172.76,2.1416]
[1717652040937,5.81,172.77,172.76,2.1416]
[1717652042547,2.1413,172.79,172.76,2.1416]
[1717652042849,5.81,172.78,172.77,2.1415]
[1717652043750,5.81,172.78,172.76,2.1416]
[1717652044742,5.81,172.77,172.73,19.2781]
[1717652044941,5.81,172.77,172.75,2.1417]
[1717652045754,5.81,172.77,172.76,2.1416]
[1717652048857,2.1413,172.79,172.76,2.1416]
[1717652049053,5.81,172.78,172.76,2.1416]
[1717652049233,2.1413,172.79,172.73,2.142]
[1717652049234,2.1417,172.76,172.73,2.142]
[1717652049441,5.81,172.74,172.73,2.142]
[1717652053963,2.1416,172.77,172.74,2.1419]
[1717652054154,5.81,172.75,172.74,2.1419]
[1717652055058,5.81,172.75,172.73,2.142]
[1717652055369,2.1417,172.76,172.72,4.2843]
[1717652055370,5.81,172.74,172.72,2.1421]
[1717652055541,5.81,172.74,172.7,10.712]
[1717652055542,5.81,172.73,172.71,2.1422]
[1717652055737,5.81,172.72,172.71,2.1422]
[1717652056445,2.1419,172.74,172.7,2.1423]
[1717652056647,2.1419,172.74,172.71,2.1423]
[1717652056867,5.81,172.72,172.71,2.1423]
[1717652057459,5.81,172.72,172.7,2.1423]
[1717652057651,5.81,172.71,172.7,2.1423]
[1717652061048,2.142,172.73,172.7,2.1423]
[1717652061254,5.81,172.71,172.7,2.1423]
[1717652063169,5.81,172.71,172.66,10.7144]
[1717652063347,5.81,172.68,172.67,2.1428]
[1717652063753,2.1422,172.72,172.69,2.1425]
[1717652063965,5.81,172.7,172.69,2.1425]
[1717652071056,2.1421,172.73,172.69,2.1425]
[1717652071253,5.81,172.7,172.69,2.1425]
[1717652072166,2.1422,172.72,172.69,2.1425]
[1717652072467,5.81,172.7,172.69,2.1425]
[1717652079678,5.81,172.7,172.68,2.1426]
[1717652079976,5.81,172.69,172.68,2.1426]
[1717652084577,2.1422,172.72,172.69,2.1425]
[1717652084773,2.1423,172.71,172.68,2.1426]
[1717652085082,5.81,172.69,172.68,2.1426]
[1717652089187,2.1422,172.72,172.68,2.1426]
[1717652089385,5.81,172.69,172.68,2.1426]
[1717652092892,5.81,172.69,172.66,10.7145]
[1717652093101,5.81,172.69,172.67,2.1427]
[1717652100313,5.81,172.69,172.66,2.1428]
[1717652100514,5.81,172.69,172.67,2.1427]
[1717652103310,5.81,172.69,172.67,2.1428]
[1717652107602,2.1424,172.7,172.67,2.1428]
[1717652107802,5.81,172.69,172.67,2.1428]
[1717652108186,5.81,172.69,172.66,2.1428]
[1717652108713,5.81,172.68,172.66,2.1428]
[1717652108895,5.81,172.69,172.66,2.1428]
[1717652109812,5.81,172.7,172.67,124.6256]
[1717652110014,5.81,172.71,172.68,2.1426]
[1717652110310,5.81,172.71,172.69,2.1425]
[1717652110608,5.81,172.7,172.69,2.1425]
[1717652113316,5.81,172.71,172.69,2.1425]
[1717652113686,5.81,172.7,172.69,2.1425]
[1717652115888,21.6586,172.75,172.67,120.34]
[1717652116095,5.81,172.72,172.7,2.1423]
[1717652119616,4.2833,172.77,172.72,2.1421]
[1717652119802,8.5644,172.81,172.72,120.0]
[1717652120000,10.7067,172.79,172.71,15.1659]
[1717652120317,5.81,172.77,172.74,2.1419]
[1717652120500,5.81,172.76,172.74,2.1419]
[1717652123620,5.81,172.76,172.75,2.1418]
[1717652124217,2.1413,172.79,172.76,2.1416]
[1717652124424,5.81,172.77,172.76,2.1416]
[1717652125123,2.1413,172.79,172.76,2.1416]
[1717652125327,5.81,172.77,172.75,2.1417]
[1717652125626,2.1413,172.79,172.75,2.1417]
[1717652126033,5.81,172.77,172.75,2.1417]
[1717652126210,2.1413,172.79,172.76,2.1416]
[1717652126400,5.81,172.77,172.76,2.1416]
[1717652126606,5.81,172.77,172.75,2.1417]
[1717652126801,2.1413,172.79,172.75,2.1417]
[1717652127006,5.81,172.76,172.71,2.1422]
[1717652127222,5.81,172.72,172.7,2.1423]
[1717652127422,5.81,172.71,172.7,2.1423]
[1717652128324,5.81,172.71,172.68,4.2852]
[1717652128325,5.81,172.71,172.69,2.1425]
[1717652128729,5.81,172.7,172.69,2.1425]
[1717652130631,5.81,172.7,172.68,2.1426]
[1717652131715,5.81,172.7,172.69,2.1425]
[1717652132231,10.7092,172.75,172.69,2.1425]
[1717652132408,5.81,172.7,172.69,2.1425]
[1717652132835,10.7092,172.75,172.69,2.1425]
[1717652133037,5.81,172.71,172.69,2.1425]
[1717652133338,5.81,172.7,172.69,2.1425]
[1717652134451,2.1421,172.73,172.69,2.1424]
[1717652134616,5.81,172.7,172.69,2.1424]
[1717652134945,5.81,172.71,172.69,2.1424]
[1717652135717,5.81,172.7,172.69,2.1424]
[1717652136048,5.81,172.71,172.69,2.1424]
[1717652136651,5.81,172.7,172.69,2.1424]
[1717652137643,5.81,172.7,172.68,2.1426]
[1717652138112,5.81,172.69,172.68,2.1426]
[1717652139548,5.81,172.69,172.66,4.2856]
[1717652139845,5.81,172.67,172.65,2.143]
[1717652140140,16.5216,172.71,172.64,2.143]
[1717652140141,5.81,172.66,172.64,2.143]
[1717652140545,2.1427,172.68,172.64,2.143]
[1717652140760,5.81,172.65,172.63,2.1432]
[1717652143331,2.1428,172.67,172.63,2.1432]
[1717652143531,5.81,172.65,172.63,2.1432]
[1717652143944,2.1428,172.67,172.63,2.1432]
[1717652143945,5.81,172.64,172.63,2.1432]
[1717652145757,5.81,172.64,172.63,2.1433]
[1717652146253,5.81,172.64,172.59,4.2876]
[1717652146428,5.81,172.62,172.61,2.1434]
[1717652149055,2.143,172.66,172.62,2.1434]
[1717652149257,5.81,172.63,172.62,2.1434]
[1717652149852,2.143,172.66,172.62,2.1434]
[1717652150154,5.81,172.63,172.62,2.1434]
[1717652152379,5.81,172.63,172.61,2.1434]
[1717652152744,5.81,172.62,172.59,2.1437]
[1717652152960,5.81,172.62,172.6,2.1436]
[1717652153364,5.81,172.62,172.61,2.1435]
[1717652156981,5.81,172.62,172.58,120.0]
[1717652157162,2.1434,172.62,172.58,2.1439]
[1717652157346,5.81,172.6,172.58,2.1439]
[1717652158363,5.81,172.61,172.58,2.1439]
[1717652164061,5.81,172.6,172.58,2.1439]
[1717652165069,2.1433,172.63,172.57,124.2881]
[1717652165250,5.81,172.62,172.59,2.1437]
[1717652165765,5.81,172.61,172.59,2.1437]
[1717652166650,5.81,172.61,172.57,120.0]
[1717652166961,7.9536,172.61,172.57,122.1439]
[1717652167478,7.9536,172.61,172.58,2.1439]
[1717652167850,7.9537,172.6,172.56,2.3141]
[1717652168180,5.81,172.59,172.57,2.144]
[1717652168862,5.81,172.6,172.57,2.144]
[1717652169387,5.81,172.59,172.57,2.144]
[1717652170550,5.81,172.59,172.56,2.1441]
[1717652171572,5.81,172.59,172.57,2.144]
[1717652173665,2.1436,172.61,172.57,2.144]
[1717652173871,5.81,172.6,172.58,2.1439]
[1717652177577,5.81,172.59,172.58,2.1439]
[1717652178078,5.81,172.59,172.57,2.144]
[1717652179385,2.1435,172.62,172.58,2.1439]
[1717652179576,5.81,172.59,172.58,2.1439]
[1717652180874,2.1435,172.62,172.58,2.1439]
[1717652181049,5.81,172.59,172.57,2.1439]
[1717652183179,5.81,172.59,172.58,2.1439]
[1717652187882,2.1434,172.62,172.58,2.1439]
[1717652188257,5.81,172.6,172.57,6.432]
[1717652188580,5.81,172.59,172.58,2.1438]
[1717652189463,2.1434,172.62,172.58,2.1438]
[1717652189671,5.81,172.61,172.59,2.1438]
[1717652190775,5.81,172.61,172.58,2.1438]
[1717652196283,7.9535,172.61,172.58,2.1438]
[1717652197296,5.81,172.6,172.58,2.1438]
[1717652200582,2.1435,172.61,172.58,2.1438]
[1717652200810,5.81,172.59,172.57,2.1439]
[1717652201313,5.81,172.59,172.58,2.1439]
[1717652202033,2.1434,172.62,172.58,2.1439]
[1717652202333,2.1434,172.62,172.59,2.1437]
[1717652202491,5.81,172.61,172.59,2.1437]
[1717652202692,2.1433,172.63,172.59,2.1437]
[1717652202922,5.81,172.61,172.59,2.1437]
[1717652203212,4.2861,172.65,172.59,2.1437]
[1717652203213,2.1434,172.62,172.59,2.1437]
[1717652203424,5.81,172.61,172.59,2.1437]
[1717652203835,5.81,172.61,172.58,2.1438]
[1717652207116,7.9535,172.61,172.58,2.1438]
[1717652207412,5.81,172.6,172.57,2.1439]
[1717652208119,5.81,172.6,172.58,2.1439]
[1717652210522,5.81,172.6,172.57,2.1439]
[1717652210729,2.1435,172.61,172.57,2.1439]
[1717652211020,5.81,172.6,172.57,2.1439]
[1717652212118,5.81,172.6,172.58,2.1439]
[1717652215122,2.1435,172.62,172.58,2.1439]
[1717652215327,5.81,172.6,172.58,2.1439]
[1717652215699,4.286,172.66,172.6,120.0]
[1717652215899,2.1431,172.65,172.61,2.1435]
[1717652216127,2.1431,172.65,172.62,2.1434]
[1717652216128,5.81,172.64,172.62,2.1434]
[1717652217925,2.1429,172.66,172.62,2.1434]
[1717652218105,2.1428,172.67,172.63,2.1432]
[1717652218307,5.81,172.65,172.63,2.1432]
[1717652218506,2.1428,172.67,172.63,2.1432]
[1717652218702,5.81,172.66,172.63,2.1432]
[1717652219228,2.1428,172.67,172.63,2.1432]
[1717652219425,5.81,172.66,172.63,2.1432]
[1717652220429,7.9529,172.66,172.63,2.1432]
[1717652220599,2.1428,172.67,172.64,2.1431]
[1717652220804,2.1427,172.68,172.64,122.1431]
[1717652221001,2.1425,172.7,172.64,124.2862]
[1717652221203,2.1423,172.71,172.67,2.1427]
[1717652221500,5.81,172.7,172.67,2.1427]
[1717652222127,5.81,172.69,172.67,2.1427]
[1717652222437,2.1424,172.7,172.67,2.1427]
[1717652222629,5.81,172.69,172.67,2.1427]
[1717652223335,2.1423,172.71,172.67,2.1427]
[1717652223542,5.81,172.69,172.67,2.1427]
[1717652224335,5.81,172.69,172.66,120.0]
[1717652224723,5.81,172.69,172.67,2.1428]
[1717652226515,2.1429,172.66,172.63,2.4831]
[1717652226715,2.1429,172.67,172.63,2.1432]
[1717652226926,5.81,172.65,172.63,2.1432]
[1717652227136,5.81,172.64,172.62,2.1433]
[1717652228020,5.81,172.64,172.63,2.1433]
[1717652228854,5.81,172.65,172.64,2.1431]
[1717652229620,7.953,172.65,172.62,2.1434]
[1717652229819,5.81,172.63,172.62,2.1434]
[1717652231835,5.81,172.64,172.63,2.1432]
[1717652232230,5.81,172.64,172.62,2.1433]
[1717652232426,5.81,172.63,172.62,2.1433]
[1717652235745,5.81,172.65,172.63,2.1432]
[1717652236324,5.81,172.65,172.64,2.1431]
[1717652237448,5.81,172.65,172.63,2.1432]
[1717652237745,5.81,172.64,172.63,2.1432]
[1717652239850,5.81,172.65,172.64,2.1431]
[1717652240055,5.81,172.66,172.64,2.1431]
[1717652240552,5.81,172.66,172.63,2.1432]
[1717652240750,5.81,172.65,172.63,2.1432]
[1717652242069,5.81,172.65,172.64,2.1431]
[1717652243439,2.1427,172.68,172.64,2.1431]
[1717652243758,5.81,172.65,172.64,2.1431]
[1717652243961,5.81,172.66,172.64,2.1431]
[1717652246340,5.81,172.65,172.64,2.1431]
[1717652247160,5.81,172.65,172.63,2.1432]
[1717652248572,5.81,172.64,172.6,124.2873]
[1717652248739,5.81,172.63,172.62,2.1433]
[1717652252958,5.81,172.63,172.61,4.287]
[1717652252959,5.81,172.63,172.6,120.0]
[1717652253148,4.2857,172.67,172.61,2.1435]
[1717652253470,5.81,172.62,172.61,2.1435]
[1717652262077,5.81,172.62,172.6,2.1436]
[1717652262566,5.81,172.61,172.6,2.1436]
[1717652270880,2.1432,172.64,172.6,2.1436]
[1717652271175,5.81,172.61,172.6,2.1436]
[1717652280383,2.1432,172.64,172.6,2.1436]
[1717652280574,5.81,172.61,172.6,2.1436]
[1717652282092,12.7237,172.68,172.59,126.4313]
[1717652282281,5.81,172.62,172.59,120.0]
[1717652282867,5.81,172.62,172.61,2.1435]
[1717652283367,5.81,172.62,172.6,2.1436]
[1717652286467,2.1432,172.64,172.6,2.1436]
[1717652286671,5.81,172.62,172.6,2.1436]
[1717652286864,5.81,172.62,172.61,2.1435]
[1717652287069,5.81,172.62,172.6,2.1436]
[1717652287992,2.1432,172.64,172.6,2.1436]
[1717652288287,5.81,172.62,172.6,2.1436]
[1717652288473,2.1432,172.64,172.6,2.1436]
[1717652288787,5.81,172.63,172.62,2.1434]
[1717652288967,5.81,172.64,172.62,2.1434]
[1717652289281,17.0091,172.68,172.63,2.1433]
[1717652289282,2.1428,172.67,172.63,2.1433]
[1717652289481,5.81,172.65,172.63,2.1433]
[1717652291164,5.81,172.65,172.62,2.1433]
[1717652291782,5.81,172.63,172.61,2.1435]
[1717652292095,2.143,172.65,172.61,2.1435]
[1717652292287,5.81,172.62,172.61,2.1435]
[1717652292489,2.143,172.66,172.62,2.1433]
[1717652292682,5.81,172.63,172.62,2.1433]
[1717652293691,5.81,172.64,172.61,2.1435]
[1717652295580,2.143,172.65,172.61,2.1435]
[1717652295768,5.81,172.63,172.61,2.1435]
[1717652299380,5.81,172.62,172.61,2.1435]
[1717652302699,2.143,172.65,172.61,2.1435]
[1717652302906,2.143,172.65,172.62,2.1433]
[1717652303086,5.81,172.63,172.62,2.1433]
[1717652304316,5.81,172.63,172.61,2.1434]
[1717652304604,5.81,172.62,172.61,2.1434]
[1717652321538,5.81,172.63,172.62,2.1434]
[1717652333043,2.143,172.65,172.62,2.1434]
[1717652333249,5.81,172.63,172.62,2.1434]
[1717652333428,2.1428,172.67,172.63,2.1432]
[1717652333628,5.81,172.64,172.62,2.1433]
[1717652338841,2.143,172.65,172.62,2.1433]
[1717652339042,5.81,172.64,172.62,2.1433]
[1717652340560,5.81,172.64,172.61,2.1434]
[1717652340756,5.81,172.63,172.61,2.1434]
[1717652341445,2.143,172.65,172.62,2.1434]
[1717652341633,5.81,172.63,172.62,2.1434]
[1717652341841,2.1429,172.66,172.63,2.1432]
[1717652342161,5.81,172.65,172.62,120.0]
[1717652342663,5.81,172.65,172.63,2.1432]
[1717652343345,2.1424,172.7,172.65,120.0]
[1717652343649,8.5687,172.73,172.65,120.0]
[1717652343650,5.81,172.68,172.66,2.1428]
[1717652343857,7.9527,172.68,172.64,2.1431]
[1717652344041,5.81,172.67,172.64,2.1431]
[1717652344236,2.1427,172.68,172.65,2.143]
[1717652345459,5.81,172.67,172.65,2.143]
[1717652346251,5.81,172.67,172.64,2.1431]
[1717652346451,5.81,172.65,172.64,2.1431]
[1717652346659,5.81,172.65,172.63,2.1432]
[1717652346834,5.81,172.65,172.64,2.1431]